[Event "Swiss Youth-ch U14 2023"]
[Site "Olten"]
[Date "2023.05.27"]
[Round "3.6"]
[White "Stoll, Arturo"]
[Black "Akinkhov, Mikhail"]
[Result "1-0"]
[ECO "D66"]
[WhiteElo "1607"]
[BlackElo "1495"]
[Annotator "NA RC"]
[PlyCount "91"]
[EventDate "2023.05.26"]
[EventType "swiss"]
[EventCountry "SUI"]
[SourceTitle "playchess.com"]
[Source "ChessBase"]
[SourceQuality "1"]
[TimeControl "5400+30"]

1. d4 {[%emt 0:00:07]} d5 {[%emt 0:00:05]} 2. c4 {[%emt 0:00:20]} c6 {[%emt 0:00:10]} 3. Nf3 {[%emt 0:00:12]} Nf6 {[%emt 0:00:08]} 4. Nc3 {[%emt 0:00:06]} e6 {[%emt 0:00:34]} 5. Bg5 {[%emt 0:00:28]} Be7 {[%emt 0:01:48]} 6. e3 {[%emt 0:01:06]} O-O {[%emt 0:00:18]} 7. Rc1 {[%emt 0:00:50]} Nbd7 {[%emt 0:00:47]} 8. Bd3 {[%emt 0:01:00]} dxc4 {[%emt 0:01:41]} 9. Bxc4 {[%emt 0:00:09]} b5 {[%emt 0:00:36]} 10. Bd3 {[%emt 0:06:30]} a6 {[%emt 0:02:01]} 11. Bxf6 {[%emt 0:01:51]} Nxf6 {[%emt 0:01:13]} 12. Ne5 {[%emt 0:00:22]} Bb7 {[%emt 0:11:21]} 13. O-O {[%emt 0:28:48]} c5 {[%emt 0:30:50]} 14. dxc5 {[%emt 0:00:34]} Bxc5 {[%emt 0:02:05]} 15. Be2 {[%emt 0:00:22]} Qb6 {[%emt 0:05:23]} 16. Bf3 {[%emt 0:10:57]} Rfd8 {[%emt 0:06:00]} 17. Qe2 {[%emt 0:01:14]} Bxf3 {[%emt 0:01:45]} 18. Qxf3 {[%emt 0:05:16]} Bd6 {[%emt 0:02:57]} 19. Nc6 {[%emt 0:02:29]} Rdc8 {[%emt 0:05:22]} 20. Nd4 {[%emt 0:01:28]} Be5 {[%emt 0:01:50]} 21. Nce2 {[%emt 0:04:05]} Nd5 {[%emt 0:01:29]} 22. Qe4 {[%emt 0:02:37]} Bf6 {[%emt 0:02:33]} 23. h3 {[%emt 0:09:01]} Rab8 {[%emt 0:01:14]} 24. a3 {[%emt 0:06:30]} h6 {[%emt 0:03:12]} 25. Rc2 {[%emt 0:00:52]} Ne7 {[%emt 0:08:46]} 26. Rfc1 {[%emt 0:00:37]} Qd8 {[%emt 0:03:23]} 27. Nb3 {[%emt 0:06:06]} Rxc2 {[%emt 0:00:57]} 28. Qxc2 {[%emt 0:00:07]} Rc8 {[%emt 0:00:48]} 29. Nc5 {[%emt 0:00:06]} Qb6 {[%emt 0:01:44]} 30. b4 {[%emt 0:00:22]} a5 {[%emt 0:01:17]} 31. Qd2 {[%emt 0:01:41]} axb4 {[%emt 0:00:36]} 32. axb4 {[%emt 0:00:01]} Nd5 {[%emt 0:01:15]} 33. e4 {[%emt 0:02:01]} Ne7 {[%emt 0:01:20]} 34. Rd1 {[%emt 0:02:09]} Rxc5 {[%emt 0:01:18]} 35. Qd8+ {[%emt 0:00:28]} Qxd8 {[%emt 0:00:03]} 36. Rxd8+ {[%emt 0:00:11]} Kh7 {[%emt 0:00:03]} 37. bxc5 {[%emt 0:00:07]} b4 {[%emt 0:00:30]} 38. Rb8 {[%emt 0:00:10]} Nc6 {[%emt 0:01:07]} 39. Rb6 {[%emt 0:00:13]} Nd4 {[%emt 0:00:36]} 40. Nf4 {[%emt 0:01:20]} b3 {[%emt 0:00:41]} 41. Nd3 {[%emt 0:00:40]} Bd8 {[%emt 0:00:34]} 42. Rd6 {[%emt 0:02:59]} Ba5 {[%emt 0:00:34]} 43. Rxd4 {[%emt 0:00:10]} b2 {[%emt 0:00:12]} 44. Nxb2 {[%emt 0:00:05]} Bc3 {[%emt 0:00:03]} 45. Rc4 {[%emt 0:00:06]} Bxb2 {[%emt 0:00:10]} 46. c6 {[%emt 0:00:03]} 1-0

[Event "Swiss Youth-ch U14 2023"]
[Site "Olten"]
[Date "2023.05.27"]
[Round "3.7"]
[White "Papaux, Jeremie"]
[Black "Paholok, Adam"]
[Result "0-1"]
[ECO "A40"]
[WhiteElo "1491"]
[BlackElo "1556"]
[Annotator "NA RC"]
[PlyCount "120"]
[EventDate "2023.05.26"]
[EventType "swiss"]
[EventCountry "SUI"]
[SourceTitle "playchess.com"]
[Source "ChessBase"]
[SourceQuality "1"]
[TimeControl "5400+30"]

1. d4 {[%emt 0:00:03]} g6 {[%emt 0:09:34]} 2. c4 {[%emt 0:00:28]} Bg7 {[%emt 0:00:05]} 3. Nc3 {[%emt 0:01:13]} c5 {[%emt 0:00:13]} 4. d5 {[%emt 0:00:43]} Bxc3+ {[%emt 1:22:38]} 5. bxc3 {[%emt 1:30:33]} f5 {[%emt 0:00:00]} 6. f3 {[%emt 0:00:00]} Nf6 {[%emt 0:00:00]} 7. Qc2 {[%emt 0:00:00]} Qa5 {[%emt 0:00:00]} 8. Bd2 {[%emt 0:00:00]} d6 {[%emt 0:00:00]} 9. e4 {[%emt 0:00:00]} O-O {[%emt 0:00:00]} 10. exf5 {[%emt 0:00:00]} Bxf5 {[%emt 0:00:00]} 11. Bd3 {[%emt 0:00:00]} Bxd3 {[%emt 0:00:00]} 12. Qxd3 {[%emt 0:00:00]} Nbd7 {[%emt 0:00:00]} 13. Nh3 {[%emt 0:00:00]} Ne5 {[%emt 0:00:00]} 14. Qe2 {[%emt 0:00:00]} Qa4 {[%emt 0:00:00]} 15. Bh6 {[%emt 0:00:00]} Rfe8 {[%emt 0:00:00]} 16. Bf4 {[%emt 0:00:00]} Qxc4 {[%emt 0:00:00]} 17. Bxe5 {[%emt 0:00:00]} Qxe2+ {[%emt 0:00:00]} 18. Kxe2 {[%emt 0:00:00]} dxe5 {[%emt 0:00:00]} 19. c4 {[%emt 0:00:00]} Rad8 {[%emt 0:00:00]} 20. Ng5 {[%emt 0:00:00]} Nh5 {[%emt 0:00:00]} 21. g3 {[%emt 0:00:00]} Ng7 {[%emt 0:00:00]} 22. Ne4 {[%emt 0:00:00]} b6 {[%emt 0:00:00]} 23. Rae1 {[%emt 0:00:00]} Nf5 {[%emt 0:00:00]} 24. Rhf1 {[%emt 0:00:00]} Nd6 {[%emt 0:00:00]} 25. Kd3 {[%emt 0:00:00]} Nxe4 {[%emt 0:00:00]} 26. Rxe4 {[%emt 0:00:00]} e6 {[%emt 0:00:00]} 27. Rxe5 {[%emt 0:00:00]} exd5 {[%emt 0:00:00]} 28. Rxd5 {[%emt 0:00:00]} Rxd5+ {[%emt 0:00:00]} 29. cxd5 {[%emt 0:00:00]} Re5 {[%emt 0:00:00]} 30. Kc4 {[%emt 0:00:00]} Kf7 {[%emt 0:00:00]} 31. Rf2 {[%emt 0:00:00]} Ke7 {[%emt 0:00:00]} 32. f4 {[%emt 0:00:00]} Re4+ {[%emt 0:00:00]} 33. Kc3 {[%emt 0:00:00]} Kd6 {[%emt 0:00:00]} 34. Rd2 {[%emt 0:00:00]} b5 {[%emt 0:00:00]} 35. a3 {[%emt 0:00:00]} Rc4+ {[%emt 0:00:00]} 36. Kb3 {[%emt 0:00:00]} Rd4 {[%emt 0:00:00]} 37. Re2 {[%emt 0:00:00]} Rxd5 {[%emt 0:00:00]} 38. Re8 {[%emt 0:00:00]} Rd3+ {[%emt 0:00:00]} 39. Kb2 {[%emt 0:00:00]} Rd2+ {[%emt 0:17:30]} 40. Kb1 {[%emt 0:00:00]} Kc6 {[%emt 0:00:00]} 41. Re6+ {[%emt 0:00:00]} Kc7 {[%emt 0:00:00]} 42. Re5 {[%emt 0:00:00]} Kc6 {[%emt 0:00:00]} 43. Re6+ {[%emt 0:00:00]} Rd6 {[%emt 0:00:00]} 44. Re7 {[%emt 0:00:00]} Rd7 {[%emt 0:00:00]} 45. Re6+ {[%emt 0:00:00]} Kc7 {[%emt 0:00:00]} 46. Re5 {[%emt 0:00:00]} Kb6 {[%emt 0:00:00]} 47. Re6+ {[%emt 0:00:00]} Ka5 {[%emt 0:00:00]} 48. Rc6 {[%emt 0:00:00]} c4 {[%emt 0:00:00]} 49. Kc2 {[%emt 0:00:00]} a6 {[%emt 0:00:00]} 50. a4 {[%emt 0:00:00]} Re7 {[%emt 0:00:00]} 51. Kd2 {[%emt 0:00:00]} Kxa4 {[%emt 0:00:00]} 52. Rxa6+ {[%emt 0:00:00]} Kb3 {[%emt 0:00:00]} 53. Rc6 {[%emt 0:00:00]} b4 {[%emt 0:00:00]} 54. g4 {[%emt 0:00:00]} c3+ {[%emt 0:00:00]} 55. Kd3 {[%emt 0:00:00]} Rd7+ {[%emt 0:00:00]} 56. Ke3 {[%emt 0:00:00]} c2 {[%emt 0:00:00]} 57. f5 {[%emt 0:00:00]} gxf5 {[%emt 0:00:00]} 58. gxf5 {[%emt 0:00:00]} Kb2 {[%emt 0:00:00]} 59. f6 {[%emt 0:00:00]} c1=Q+ {[%emt 0:00:00]} 60. Rxc1 {[%emt 0:00:00]} Kxc1 {[%emt 0:00:00]} 0-1

[Event "Swiss Youth-ch U14 2023"]
[Site "Olten"]
[Date "2023.05.27"]
[Round "3.8"]
[White "Gade, Niels Severin"]
[Black "Gafner, Lancelot"]
[Result "1-0"]
[ECO "C50"]
[WhiteElo "1689"]
[BlackElo "1641"]
[Annotator "NA RC"]
[PlyCount "63"]
[EventDate "2023.05.26"]
[EventType "swiss"]
[EventCountry "SUI"]
[SourceTitle "playchess.com"]
[Source "ChessBase"]
[SourceQuality "1"]
[TimeControl "5400+30"]

1. e4 {[%emt 0:00:00]} e5 {[%emt 1:31:00]} 2. Nf3 {[%emt 1:31:30]} Nc6 {[%emt 0:00:00]} 3. Bc4 {[%emt 0:00:00]} Bc5 {[%emt 0:00:00]} 4. O-O {[%emt 0:00:00]} Nf6 {[%emt 0:00:00]} 5. d4 {[%emt 0:00:00]} Bxd4 {[%emt 0:00:00]} 6. Nxd4 {[%emt 0:00:00]} Nxd4 {[%emt 0:00:00]} 7. f4 {[%emt 0:00:00]} d6 {[%emt 0:00:00]} 8. c3 {[%emt 0:00:00]} Ne6 {[%emt 0:00:00]} 9. Be3 {[%emt 0:00:00]} exf4 {[%emt 0:00:00]} 10. Bxf4 {[%emt 0:00:00]} Nxf4 {[%emt 0:00:00]} 11. Rxf4 {[%emt 0:00:00]} Be6 {[%emt 0:00:00]} 12. Bxe6 {[%emt 0:00:00]} fxe6 {[%emt 0:00:00]} 13. Nd2 {[%emt 0:00:00]} O-O {[%emt 0:00:00]} 14. Qb3 {[%emt 0:00:00]} Qd7 {[%emt 0:00:00]} 15. Raf1 {[%emt 0:00:00]} c6 {[%emt 0:00:00]} 16. c4 {[%emt 0:00:00]} Rf7 {[%emt 0:00:00]} 17. Nf3 {[%emt 0:00:00]} e5 {[%emt 0:00:00]} 18. Rf5 {[%emt 0:00:00]} Nxe4 {[%emt 0:00:00]} 19. Rxf7 {[%emt 0:00:00]} Qxf7 {[%emt 0:00:00]} 20. Qd3 {[%emt 0:00:00]} Qg6 {[%emt 0:00:00]} 21. Nh4 {[%emt 0:00:00]} Qg4 {[%emt 0:00:00]} 22. Nf5 {[%emt 0:00:00]} Rd8 {[%emt 0:00:00]} 23. h3 {[%emt 0:00:00]} Nc5 {[%emt 0:00:00]} 24. Qe3 {[%emt 0:00:00]} Qh5 {[%emt 0:02:58]} 25. g4 {[%emt 0:00:00]} Qe8 {[%emt 0:01:28]} 26. Rd1 {[%emt 0:00:00]} Qe6 {[%emt 0:01:51]} 27. Qg5 {[%emt 0:00:00]} Qf6 {[%emt 0:01:45]} 28. Nh6+ {[%emt 0:00:00]} Qxh6 {[%emt 0:03:11]} 29. Qxd8+ {[%emt 0:00:00]} Kf7 {[%emt 0:00:09]} 30. Rf1+ {[%emt 0:00:00]} Kg6 {[%emt 0:01:30]} 31. Qxd6+ {[%emt 0:00:00]} Kg5 {[%emt 0:00:14]} 32. Rf5+ {[%emt 0:00:00]} 1-0

[Event "Swiss Youth-ch U14 2023"]
[Site "Olten"]
[Date "2023.05.27"]
[Round "4.1"]
[White "Gut, Raphael"]
[Black "Gut, Lionel"]
[Result "1/2-1/2"]
[ECO "E43"]
[WhiteElo "1817"]
[BlackElo "2054"]
[Annotator "NA RC"]
[PlyCount "184"]
[EventDate "2023.05.26"]
[EventType "swiss"]
[EventCountry "SUI"]
[SourceTitle "playchess.com"]
[Source "ChessBase"]
[SourceQuality "1"]
[TimeControl "5400+30"]

1. d4 {[%emt 0:00:04]} Nf6 {[%emt 0:00:05]} 2. c4 {[%emt 0:00:02]} e6 {[%emt 0:00:05]} 3. Nc3 {[%emt 0:01:20]} Bb4 {[%emt 0:00:05]} 4. e3 {[%emt 0:00:01]} O-O {[%emt 0:00:10]} 5. Bd2 {[%emt 0:00:05]} b6 {[%emt 0:00:16]} 6. Bd3 {[%emt 0:00:21]} Bb7 {[%emt 0:00:13]} 7. Nf3 {[%emt 0:00:05]} c5 {[%emt 0:00:20]} 8. a3 {[%emt 0:00:11]} Bxc3 {[%emt 0:00:05]} 9. Bxc3 {[%emt 0:00:03]} cxd4 {[%emt 0:00:08]} 10. exd4 {[%emt 0:00:03]} d5 {[%emt 0:00:07]} 11. b3 {[%emt 0:00:05]} a5 {[%emt 0:00:50]} 12. O-O {[%emt 0:02:00]} a4 {[%emt 0:00:10]} 13. bxa4 {[%emt 0:00:41]} dxc4 {[%emt 0:00:19]} 14. Bxc4 {[%emt 0:00:10]} Qc7 {[%emt 0:00:31]} 15. Bb4 $2 {[%emt 0:09:21]} (15. Ne5 $11) 15... Qxc4 {[%emt 0:03:31]} 16. Rc1 {[%emt 0:01:14]} Qd5 {[%emt 0:01:02]} 17. Bxf8 {[%emt 0:00:10]} Kxf8 {[%emt 0:00:07]} 18. Rc7 {[%emt 0:07:18]} Na6 {[%emt 0:04:10]} 19. Rc2 {[%emt 0:01:44]} Rd8 {[%emt 0:01:23]} 20. Qe2 {[%emt 0:02:22]} Nb8 {[%emt 0:04:06]} 21. Rb1 {[%emt 0:03:10]} Nc6 {[%emt 0:01:46]} 22. Qc4 {[%emt 0:03:19]} Qxc4 {[%emt 0:02:05]} (22... Nxd4 $2 {loses.} 23. Qxd5 Rxd5 24. Nxd4 Rxd4 25. h3 $19) 23. Rxc4 {[%emt 0:00:09]} Na5 {[%emt 0:00:10]} 24. Rcc1 {[%emt 0:02:16]} Nd5 {[%emt 0:00:20]} 25. g3 {[%emt 0:04:09]} f6 {[%emt 0:02:38]} 26. Nh4 {[%emt 0:01:17]} Bc6 {[%emt 0:00:56]} 27. Re1 {[%emt 0:01:53]} Kf7 {[%emt 0:00:25]} 28. f4 {[%emt 0:00:39]} Bxa4 {[%emt 0:00:38]} 29. f5 {[%emt 0:00:38]} exf5 {[%emt 0:00:10]} 30. Rb2 {[%emt 0:04:57]} g6 {[%emt 0:00:24]} 31. Ng2 {[%emt 0:01:27]} Nc4 {[%emt 0:00:43]} 32. Rbe2 {[%emt 0:00:35]} Nd6 {[%emt 0:00:25]} 33. Nf4 {[%emt 0:00:19]} Ne4 {[%emt 0:00:36]} 34. Nxd5 {[%emt 0:00:24]} Rxd5 {[%emt 0:00:01]} 35. Rb2 {[%emt 0:00:09]} b5 {[%emt 0:00:19]} 36. Rb4 $19 {[%emt 0:00:03]} Ke7 {[%emt 0:02:06]} 37. g4 {[%emt 0:00:38]} Kd7 {[%emt 0:00:14]} 38. gxf5 {[%emt 0:00:04]} gxf5 {[%emt 0:00:06]} 39. Kg2 {[%emt 0:01:12]} Nd6 {[%emt 0:01:33]} 40. Rc1 {[%emt 0:00:46]} Nb7 {[%emt 0:03:18]} 41. Kf3 {[%emt 0:01:17]} Nd8 {[%emt 0:00:54]} 42. Rc5 {[%emt 0:01:23]} Rxc5 {[%emt 0:00:18]} 43. dxc5 {[%emt 0:00:21]} Ne6 {[%emt 0:00:10]} 44. Rh4 {[%emt 0:00:46]} h5 {[%emt 0:00:18]} 45. Ke3 {[%emt 0:00:33]} Bd1 {[%emt 0:00:19]} 46. h3 {[%emt 0:00:31]} Kc6 {[%emt 0:00:28]} 47. Kd2 {[%emt 0:00:15]} Bf3 {[%emt 0:00:37]} 48. Ke3 {[%emt 0:00:05]} Ng5 {[%emt 0:05:02]} 49. a4 {[%emt 0:01:26]} Bg2 {[%emt 0:08:05]} 50. axb5+ {[%emt 0:00:58]} Kxb5 {[%emt 0:00:00]} 51. Rxh5 {[%emt 0:00:38]} Bxh3 {[%emt 0:00:07]} 52. Rh6 {[%emt 0:00:43]} Kxc5 {[%emt 0:00:16]} 53. Rxf6 {[%emt 0:00:17]} Kd5 {[%emt 0:01:02]} 54. Ra6 {[%emt 0:01:54]} Ke5 {[%emt 0:00:31]} 55. Ra5+ {[%emt 0:00:55]} Kf6 {[%emt 0:00:01]} 56. Ra4 {[%emt 0:01:31]} Ne6 {[%emt 0:00:13]} 57. Rh4 {[%emt 0:00:55]} Bg4 {[%emt 0:00:01]} 58. Rh8 {[%emt 0:02:09]} Ke5 {[%emt 0:00:09]} 59. Ra8 {[%emt 0:01:12]} f4+ {[%emt 0:00:13]} 60. Kf2 {[%emt 0:00:04]} Ke4 {[%emt 0:00:39]} 61. Ra4+ {[%emt 0:02:04]} Nd4 {[%emt 0:00:01]} 62. Rb4 {[%emt 0:02:55]} Bh5 {[%emt 0:00:53]} 63. Ra4 {[%emt 0:00:44]} Be8 {[%emt 0:00:15]} 64. Ra3 {[%emt 0:00:19]} Ne6 {[%emt 0:00:53]} 65. Ra1 {[%emt 0:00:17]} Bc6 {[%emt 0:00:22]} 66. Re1+ {[%emt 0:00:18]} Kf5 {[%emt 0:00:01]} 67. Rc1 {[%emt 0:00:29]} Be4 {[%emt 0:00:14]} 68. Rc3 {[%emt 0:01:16]} Ng5 {[%emt 0:00:17]} 69. Rc5+ {[%emt 0:00:38]} Kg4 {[%emt 0:00:06]} 70. Rc8 {[%emt 0:01:56]} Nh3+ {[%emt 0:00:25]} 71. Kf1 {[%emt 0:00:08]} Bd3+ {[%emt 0:00:32]} 72. Ke1 {[%emt 0:00:02]} Kf3 {[%emt 0:01:17]} 73. Re8 {[%emt 0:01:34]} Ng5 {[%emt 0:00:55]} 74. Kd2 {[%emt 0:00:48]} Be4 {[%emt 0:00:15]} 75. Ke1 {[%emt 0:00:08]} Ke3 {[%emt 0:00:14]} 76. Kf1 {[%emt 0:00:13]} f3 {[%emt 0:00:07]} 77. Rf8 {[%emt 0:00:27]} Nh3 {[%emt 0:00:43]} 78. Re8 {[%emt 0:00:12]} Nf4 {[%emt 0:00:23]} 79. Re7 {[%emt 0:00:13]} Nh3 {[%emt 0:00:35]} 80. Re8 {[%emt 0:00:04]} Kf4 {[%emt 0:01:05]} 81. Rf8+ {[%emt 0:00:16]} Kg3 {[%emt 0:00:08]} 82. Rg8+ {[%emt 0:00:06]} Kh2 {[%emt 0:00:07]} 83. Rf8 {[%emt 0:00:18]} Kg3 {[%emt 0:00:27]} 84. Rg8+ {[%emt 0:00:06]} Kf4 {[%emt 0:00:04]} 85. Rf8+ {[%emt 0:00:39]} Bf5 {[%emt 0:00:02]} 86. Rf7 {[%emt 0:00:14]} Ng5 {[%emt 0:00:07]} 87. Rf8 {[%emt 0:00:08]} Ne4 {[%emt 0:00:16]} 88. Rf7 {[%emt 0:00:05]} Ke5 {[%emt 0:00:16]} 89. Rf8 {[%emt 0:00:15]} Ke6 {[%emt 0:00:20]} 90. Ke1 {[%emt 0:01:24]} f2+ {[%emt 0:00:17]} 91. Ke2 {[%emt 0:00:19]} Bg4+ {[%emt 0:00:07]} 92. Ke3 {[%emt 0:00:02]} Bf5 {[%emt 0:00:15]} 1/2-1/2

[Event "Swiss Youth-ch U14 2023"]
[Site "Olten"]
[Date "2023.05.27"]
[Round "4.2"]
[White "Malli, Suvirr"]
[Black "Kanana, Ziad"]
[Result "1-0"]
[ECO "B13"]
[WhiteElo "2114"]
[BlackElo "1828"]
[Annotator "NA RC"]
[PlyCount "75"]
[EventDate "2023.05.26"]
[EventType "swiss"]
[EventCountry "SUI"]
[SourceTitle "playchess.com"]
[Source "ChessBase"]
[SourceQuality "1"]
[TimeControl "5400+30"]

1. e4 {[%emt 0:00:15]} c6 {[%emt 0:00:14]} 2. d4 {[%emt 0:00:08]} d5 {[%emt 0:00:08]} 3. exd5 {[%emt 0:00:45]} cxd5 {[%emt 0:00:02]} 4. Nf3 {[%emt 0:00:30]} Nf6 {[%emt 0:01:48]} 5. Ne5 {[%emt 0:01:08]} Nc6 {[%emt 0:05:37]} 6. Bb5 {[%emt 0:01:38]} Qb6 {[%emt 0:04:09]} 7. Ba4 {[%emt 0:06:03]} Bf5 {[%emt 0:04:28]} (7... Nd7 $11 {deserves consideration.}) 8. O-O $1 {[%emt 0:05:18]} e6 {[%emt 0:01:39]} 9. c3 {[%emt 0:03:53]} Bd6 {[%emt 0:02:46]} 10. Bf4 $17 {[%emt 0:02:41]} (10. c4 $1 $11 dxc4 11. Nd2) 10... Rd8 {[%emt 0:12:36]} 11. c4 {[%emt 0:13:37]} Bxe5 {[%emt 0:12:54]} 12. c5 {[%emt 0:00:58]} Qa5 {[%emt 0:07:36]} 13. Bxe5 {[%emt 0:04:54]} O-O {[%emt 0:07:04]} 14. Bd6 {[%emt 0:06:45]} Rfe8 {[%emt 0:01:40]} 15. a3 {[%emt 0:09:43]} b5 {[%emt 0:03:24]} 16. Bb3 {[%emt 0:01:13]} Ne4 {[%emt 0:08:17]} 17. Bf4 {[%emt 0:02:06]} e5 {[%emt 0:08:00]} 18. dxe5 {[%emt 0:01:29]} Nxe5 {[%emt 0:00:44]} 19. Bc2 {[%emt 0:01:44]} b4 {[%emt 0:02:37]} 20. Bxe5 {[%emt 0:01:57]} Rxe5 {[%emt 0:00:15]} 21. Qd4 {[%emt 0:00:25]} Rde8 {[%emt 0:02:26]} 22. f4 {[%emt 0:03:02]} R5e6 {[%emt 0:02:58]} 23. Qxb4 {[%emt 0:00:47]} Qc7 {[%emt 0:01:35]} 24. Nc3 {[%emt 0:02:58]} Nxc3 {[%emt 0:03:07]} 25. Bxf5 {[%emt 0:06:50]} Ne2+ {[%emt 0:00:02]} 26. Kh1 {[%emt 0:00:36]} Rh6 {[%emt 0:01:13]} 27. Rf3 {[%emt 0:06:25]} Rc6 {[%emt 0:01:30]} 28. Qa4 {[%emt 0:04:16]} Rb8 {[%emt 0:02:06]} 29. Bxh7+ {[%emt 0:02:48]} Kxh7 {[%emt 0:02:04]} 30. Qc2+ {[%emt 0:00:04]} g6 {[%emt 0:01:00]} 31. Qxe2 {[%emt 0:00:34]} Rxc5 {[%emt 0:00:37]} 32. Rg1 {[%emt 0:05:12]} Rc2 {[%emt 0:00:56]} 33. Qd3 {[%emt 0:00:59]} Rbxb2 {[%emt 0:00:44]} 34. Qd4 {[%emt 0:01:04]} f6 {[%emt 0:00:37]} 35. Qxf6 {[%emt 0:00:13]} Qd7 {[%emt 0:00:31]} 36. f5 {[%emt 0:00:20]} Rb6 {[%emt 0:00:30]} 37. Rh3+ {[%emt 0:00:08]} Kg8 {[%emt 0:00:07]} 38. Rh8# {[%emt 0:00:06]} 1-0

[Event "Swiss Youth-ch U14 2023"]
[Site "Olten"]
[Date "2023.05.27"]
[Round "4.3"]
[White "Breyer, Thierry"]
[Black "Breyer, Philippe"]
[Result "1-0"]
[ECO "B90"]
[WhiteElo "1697"]
[BlackElo "1766"]
[Annotator "NA RC"]
[PlyCount "113"]
[EventDate "2023.05.26"]
[EventType "swiss"]
[EventCountry "SUI"]
[SourceTitle "playchess.com"]
[Source "ChessBase"]
[SourceQuality "1"]
[TimeControl "5400+30"]

1. e4 {[%emt 0:00:01]} c5 {[%emt 0:00:01]} 2. Nf3 {[%emt 0:00:08]} d6 {[%emt 0:00:02]} 3. d4 {[%emt 0:00:04]} cxd4 {[%emt 0:00:01]} 4. Nxd4 {[%emt 0:00:02]} Nf6 {[%emt 0:00:03]} 5. Nc3 {[%emt 0:00:10]} a6 {[%emt 0:00:06]} 6. h3 {[%emt 0:00:03]} e5 {[%emt 0:00:12]} 7. Nb3 {[%emt 0:00:08]} Be7 {[%emt 0:00:06]} 8. Be3 {[%emt 0:01:29]} h6 {[%emt 0:00:00]} 9. Qd2 {[%emt 0:00:17]} Be6 {[%emt 0:01:04]} 10. O-O-O {[%emt 0:00:55]} Nbd7 {[%emt 0:00:49]} 11. g4 {[%emt 0:05:51]} Rc8 {[%emt 0:01:47]} 12. f3 {[%emt 0:07:23]} b5 {[%emt 0:17:42]} 13. h4 {[%emt 0:08:11]} Nb6 {[%emt 0:11:28]} 14. Qf2 {[%emt 0:04:30]} Nfd7 {[%emt 0:05:07]} 15. Kb1 {[%emt 0:14:23]} Nc4 {[%emt 0:07:28]} 16. Bxc4 {[%emt 0:01:56]} bxc4 {[%emt 0:01:23]} 17. Nc1 {[%emt 0:01:55]} Qa5 {[%emt 0:07:28]} 18. N1e2 {[%emt 0:12:01]} Rb8 {[%emt 0:02:18]} 19. Ka1 {[%emt 0:09:31]} Qb4 {[%emt 0:17:21]} 20. Rb1 {[%emt 0:01:53]} Nb6 {[%emt 0:08:07]} 21. Rhd1 {[%emt 0:07:52]} Nd7 {[%emt 0:03:59]} 22. Nd5 {[%emt 0:05:03]} Bxd5 {[%emt 0:00:51]} 23. Rxd5 {[%emt 0:01:43]} Nb6 {[%emt 0:02:53]} 24. a3 {[%emt 0:04:18]} Qa4 {[%emt 0:04:24]} 25. Bxb6 {[%emt 0:00:13]} Bxh4 {[%emt 0:01:21]} 26. Qxh4 {[%emt 0:02:34]} Rxb6 {[%emt 0:00:34]} 27. Qf2 {[%emt 0:01:04]} Qc6 {[%emt 0:00:57]} 28. Nc3 {[%emt 0:01:03]} O-O {[%emt 0:01:28]} 29. Na2 {[%emt 0:02:23]} Rfb8 {[%emt 0:01:59]} 30. Qd2 {[%emt 0:01:31]} R8b7 {[%emt 0:02:30]} 31. Qc3 {[%emt 0:00:56]} Qa4 {[%emt 0:01:10]} 32. Ra5 {[%emt 0:01:39]} Qc6 {[%emt 0:00:48]} 33. Nb4 {[%emt 0:01:01]} Qc8 {[%emt 0:00:06]} 34. Rd1 {[%emt 0:00:21]} Rd7 {[%emt 0:01:07]} 35. Rdd5 {[%emt 0:02:26]} Kf8 {[%emt 0:00:29]} 36. Rd1 {[%emt 0:01:11]} Rb8 {[%emt 0:00:49]} 37. Rad5 {[%emt 0:01:16]} Rb6 {[%emt 0:00:29]} 38. Qe3 {[%emt 0:00:42]} Qc7 {[%emt 0:00:29]} 39. c3 {[%emt 0:00:39]} f6 {[%emt 0:00:23]} 40. f4 {[%emt 0:00:18]} Qa7 {[%emt 0:00:34]} 41. fxe5 {[%emt 0:00:42]} fxe5 {[%emt 0:00:02]} 42. Rf1+ {[%emt 0:00:27]} Kg8 {[%emt 0:00:06]} 43. Qf2 {[%emt 0:00:37]} a5 {[%emt 0:00:41]} 44. Rxa5 {[%emt 0:00:52]} Qxa5 {[%emt 0:01:08]} 45. Qf8+ {[%emt 0:00:06]} Kh7 {[%emt 0:00:08]} 46. Qf5+ {[%emt 0:00:04]} Kg8 {[%emt 0:00:34]} 47. Qxd7 {[%emt 0:00:11]} Qa8 {[%emt 0:00:37]} 48. Nd5 {[%emt 0:01:26]} Rxb2 {[%emt 0:00:47]} 49. Kxb2 {[%emt 0:00:10]} Qb8+ {[%emt 0:00:05]} 50. Nb4 {[%emt 0:00:10]} Qb6 {[%emt 0:00:12]} 51. Qc8+ {[%emt 0:00:26]} Kh7 {[%emt 0:00:04]} 52. Qxc4 {[%emt 0:00:09]} Qe3 {[%emt 0:00:02]} 53. Qd3 {[%emt 0:00:20]} Qg5 {[%emt 0:00:07]} 54. Qf3 {[%emt 0:00:24]} Qd2+ {[%emt 0:00:07]} 55. Nc2 {[%emt 0:00:06]} d5 {[%emt 0:00:22]} 56. Qf5+ {[%emt 0:00:23]} Kh8 {[%emt 0:00:05]} 57. Qg6 {[%emt 0:00:30]} 1-0